bitfinex/quotes_BTCUSD_20240803
["timestamp","ask_amount","ask_price","bid_price","bid_amount"]
[1722717551436,2.1238757,60704.0,60703.0,0.001913]
[1722717551643,2.13383335,60704.0,60703.0,0.001913]
[1722717551820,2.1916355,60704.0,60703.0,0.001913]
[1722717552018,2.82236906,60704.0,60703.0,0.001913]
[1722717552470,1.291083,60691.0,60690.0,1.0]
[1722717552646,1.61681508,60691.0,60690.0,1.0]
[1722717553622,1.61981508,60691.0,60690.0,1.0]
[1722717554331,1.48283389,60691.0,60690.0,1.0]
[1722717554587,1.48383389,60691.0,60690.0,1.0]
[1722717556973,1.50967906,60691.0,60690.0,1.0]
[1722717558616,1.44907906,60691.0,60690.0,1.0]
[1722717558818,1.37197906,60691.0,60690.0,1.0]
[1722717559030,0.02984517,60691.0,60690.0,1.226971]
[1722717559764,0.52415217,60691.0,60690.0,1.0622]
[1722717559965,0.52415217,60691.0,60690.0,1.0]
[1722717560202,0.19361417,60691.0,60690.0,1.0]
[1722717560337,0.02584517,60691.0,60690.0,1.499314]
[1722717560721,0.02584517,60691.0,60690.0,1.969157]
[1722717561091,0.02584517,60691.0,60690.0,2.2987]
[1722717561295,0.02984517,60691.0,60690.0,2.2987]
[1722717561498,0.02984517,60691.0,60690.0,2.47445089]
[1722717561702,0.02584517,60691.0,60690.0,2.47445089]
[1722717562043,0.02584517,60691.0,60690.0,2.46945089]
[1722717562244,0.02684517,60691.0,60690.0,2.48945089]
[1722717562446,0.02684517,60691.0,60690.0,2.79899389]
[1722717562570,0.02684517,60691.0,60690.0,2.2937]
[1722717562771,0.02584517,60691.0,60690.0,2.2937]
[1722717562972,0.02684517,60691.0,60690.0,2.3057]
[1722717563283,0.02784517,60691.0,60690.0,2.3157]
[1722717563478,0.02784517,60691.0,60690.0,2.3057]
[1722717563683,0.00120284,60706.0,60702.0,0.164737]
[1722717563684,0.00120284,60705.0,60702.0,0.164737]
[1722717563898,0.164728,60706.0,60703.0,0.00037155]
[1722717564059,0.82695631,60708.0,60704.0,0.164733]
[1722717564060,0.164723,60708.0,60704.0,0.164733]
[1722717564244,0.33047389,60708.0,60705.0,0.00037155]
[1722717564420,0.164725,60707.0,60705.0,0.00037155]
[1722717564620,0.16575089,60708.0,60705.0,0.164729]
[1722717564938,0.33047489,60708.0,60704.0,0.00037155]
[1722717565147,0.33047489,60708.0,60704.0,0.16510455]
[1722717565603,0.16575089,60708.0,60704.0,0.00037155]
[1722717565825,0.16575089,60708.0,60706.0,0.00037155]
[1722717566019,0.16575089,60708.0,60705.0,0.16473]
[1722717566220,0.16575089,60708.0,60706.0,0.16509955]
[1722717567384,0.16659659,60708.0,60706.0,0.16509955]
[1722717567605,0.16659659,60708.0,60705.0,0.001]
[1722717567606,0.16659659,60708.0,60707.0,0.164725]
[1722717567841,0.16659659,60708.0,60707.0,0.494176]
[1722717568153,0.001,60708.0,60707.0,0.823627]
[1722717569492,0.00083,60714.0,60713.0,0.164709]
[1722717569924,0.00083,60714.0,60713.0,0.494127]
[1722717570132,0.00083,60714.0,60713.0,0.823545]
[1722717570630,0.00083,60714.0,60713.0,0.494127]
[1722717571062,0.02666619,60714.0,60713.0,1.233763]
[1722717571266,0.00083,60714.0,60713.0,1.233763]
[1722717571660,0.00083,60714.0,60713.0,0.904345]
[1722717572301,0.00083,60714.0,60713.0,0.907345]
[1722717572883,0.00083,60714.0,60713.0,1.236763]
[1722717573084,0.00083,60714.0,60713.0,1.25328826]
[1722717573285,0.00083,60714.0,60713.0,1.64850626]
[1722717574185,0.00083,60714.0,60713.0,1.65850626]
[1722717574413,0.02666173,60714.0,60713.0,1.65850626]
[1722717574615,0.02766173,60714.0,60713.0,1.65550626]
[1722717574818,0.02766173,60714.0,60713.0,1.638981]
[1722717575147,0.02666173,60714.0,60713.0,1.638981]
[1722717575456,0.02666173,60714.0,60713.0,1.970399]
[1722717575457,0.02766173,60714.0,60713.0,1.970399]
[1722717575755,0.02866173,60714.0,60713.0,2.24514989]
[1722717576177,0.00283,60714.0,60713.0,2.24514989]
[1722717576385,0.00183,60714.0,60713.0,2.23614989]
[1722717576625,0.00183,60714.0,60713.0,2.27014989]
[1722717577343,0.00283,60714.0,60713.0,2.27014989]
[1722717577767,0.00183,60714.0,60713.0,2.27014989]
[1722717577974,0.00183,60714.0,60713.0,2.25614989]
[1722717578266,0.00183,60714.0,60713.0,2.27014989]
[1722717578267,0.00283,60714.0,60713.0,2.27014989]
[1722717578491,0.00283,60714.0,60713.0,1.91873189]
[1722717578665,0.00283,60714.0,60713.0,1.752981]
[1722717579080,0.00283,60714.0,60713.0,1.75268455]
[1722717579605,0.00283,60714.0,60713.0,1.76268455]
[1722717579802,0.00283,60714.0,60713.0,1.75268455]
[1722717579977,0.00283,60714.0,60713.0,1.76268455]
[1722717580577,0.00283,60714.0,60713.0,1.75268455]
[1722717582414,0.00283,60714.0,60713.0,1.76268455]
[1722717582617,0.02865955,60714.0,60713.0,1.76268455]
[1722717582813,0.00283,60714.0,60713.0,1.75268455]
[1722717583113,0.00283,60714.0,60713.0,1.76268455]
[1722717583339,0.00283,60714.0,60713.0,1.75268455]
[1722717583765,0.00283,60714.0,60713.0,1.76268455]
[1722717583963,0.00283,60714.0,60713.0,1.94843544]
[1722717585176,0.00283,60714.0,60713.0,2.27785344]
[1722717585491,0.00283,60714.0,60713.0,1.94843544]
[1722717586053,0.00283,60714.0,60713.0,2.27985344]
[1722717586221,0.02865895,60714.0,60713.0,1.95043544]
[1722717586443,0.02865895,60714.0,60713.0,1.94843544]
[1722717586836,0.02865895,60714.0,60713.0,1.92843544]
[1722717586837,0.00283,60714.0,60713.0,1.92843544]
[1722717587077,0.00283,60714.0,60713.0,2.27985344]
[1722717589446,0.00283,60714.0,60713.0,2.60927144]
[1722717589917,1e-06,60714.0,60713.0,2.78307144]
[1722717590457,1e-06,60714.0,60713.0,2.82816867]
[1722717591500,1e-06,60714.0,60713.0,2.89660582]
[1722717593184,1e-06,60714.0,60713.0,2.56718782]
[1722717593382,1e-06,60714.0,60713.0,2.49875067]
[1722717593874,0.00083,60729.0,60728.0,1.152679]
[1722717594090,0.00083,60729.0,60728.0,1.16920426]
[1722717594501,0.00083,60729.0,60728.0,1.49854126]
[1722717595056,0.00283,60729.0,60728.0,1.49954126]
[1722717595824,0.02865443,60729.0,60728.0,1.49954126]
[1722717596029,0.00283,60729.0,60728.0,1.49954126]
[1722717596268,0.00283,60729.0,60728.0,1.98359215]
[1722717596467,0.00120284,60750.0,60749.0,0.164611]
[1722717596671,0.14283,60751.0,60749.0,0.0164611]
[1722717596894,0.14283,60751.0,60738.0,0.4684]
[1722717596895,0.16575089,60750.0,60742.0,0.329258]
[1722717597067,0.16575089,60750.0,60747.0,0.164615]
[1722717597267,0.16575089,60750.0,60746.0,0.329238]
[1722717597468,0.16575089,60750.0,60739.0,0.01652526]
[1722717597668,0.16575089,60750.0,60747.0,0.164615]
[1722717597849,0.16575089,60750.0,60749.0,0.164611]
[1722717598049,0.16875089,60750.0,60747.0,0.164614]
[1722717598437,0.003,60750.0,60749.0,0.493834]
[1722717599259,0.02881997,60750.0,60749.0,0.493834]
[1722717599660,0.03181997,60750.0,60749.0,0.493834]
[1722717599950,0.02581997,60750.0,60749.0,0.493834]
[1722717600143,0.02581997,60750.0,60749.0,0.823057]
[1722717600352,0.14283,60751.0,60750.0,0.823045]
[1722717600672,0.07683,60751.0,60750.0,0.823045]
[1722717600877,0.00083,60751.0,60750.0,1.152263]
[1722717602938,0.823045,60750.0,60749.0,0.002]
[1722717603143,0.33035989,60750.0,60749.0,0.002]
[1722717603476,0.35618049,60750.0,60742.0,0.329258]
[1722717603677,0.52079049,60750.0,60744.0,0.164624]
[1722717603883,0.16575089,60750.0,60745.0,0.164621]
[1722717604061,0.16575089,60750.0,60743.0,0.329255]
[1722717604278,0.16575089,60750.0,60749.0,0.494834]
[1722717604279,0.008,60750.0,60749.0,0.494834]
[1722717604450,0.14283,60751.0,60750.0,0.164609]
[1722717604832,0.14283,60751.0,60750.0,0.823045]
[1722717605351,0.07683,60751.0,60750.0,0.823045]
[1722717605570,0.07683,60751.0,60750.0,0.825045]
[1722717605973,0.00083,60751.0,60750.0,0.825045]
[1722717606394,0.00083,60751.0,60750.0,1.154263]
[1722717606593,0.02664822,60751.0,60750.0,1.154263]
[1722717607048,0.02664822,60751.0,60750.0,1.152263]
[1722717607188,0.00083,60751.0,60750.0,1.152263]
[1722717607428,0.00083,60751.0,60750.0,1.157263]
[1722717607596,0.00083,60751.0,60750.0,1.486481]
[1722717607822,0.00083,60751.0,60750.0,1.489481]
[1722717608383,0.00083,60751.0,60750.0,0.831045]
[1722717608582,0.00083,60751.0,60750.0,1.160263]
[1722717610032,0.00083,60751.0,60750.0,0.831045]
[1722717610236,0.00083,60751.0,60750.0,0.172609]
[1722717610498,0.557648,60751.0,60750.0,0.008]
[1722717610793,0.88686,60751.0,60750.0,0.008]
[1722717610998,1.02371962,60751.0,60750.0,0.008]
[1722717611229,1.02371962,60751.0,60750.0,0.005]
[1722717611412,1.02471962,60751.0,60750.0,0.005]
[1722717611616,1.02471962,60751.0,60743.0,0.164627]
[1722717611617,1.02586451,60751.0,60743.0,0.164627]
[1722717611846,1.02586451,60751.0,60743.0,0.164626]
[1722717611847,0.164618,60747.0,60743.0,0.164626]
[1722717612034,0.16462,60746.0,60743.0,0.164626]
[1722717612494,0.16462,60746.0,60742.0,0.32926]
[1722717612495,0.164663,60730.0,60729.0,0.4684]
[1722717612703,0.08291805,60737.0,60724.0,0.49750831]
[1722717612913,0.30384393,60736.0,60720.0,0.0635]
[1722717613119,0.329308,60734.0,60727.0,0.16467]
[1722717613323,0.329308,60734.0,60720.0,0.0635]
[1722717613324,0.00120284,60733.0,60728.0,0.164667]
[1722717613538,0.0823,60732.0,60718.0,0.4684]
[1722717613770,0.00120284,60731.0,60728.0,0.164668]
[1722717613969,0.164663,60730.0,60726.0,0.164673]
[1722717614105,0.00120284,60729.0,60726.0,0.164673]
[1722717614322,0.00120284,60729.0,60728.0,0.164668]
[1722717614554,0.00120284,60731.0,60728.0,0.164668]
[1722717616329,0.00520284,60731.0,60728.0,0.164668]
[1722717616513,0.00520284,60731.0,60729.0,0.164665]
[1722717616729,0.00520284,60731.0,60730.0,0.164663]
[1722717616937,0.007,60731.0,60730.0,0.164663]
[1722717617122,0.007,60731.0,60730.0,0.493989]
[1722717617323,0.007,60731.0,60730.0,0.164663]
[1722717617563,0.001,60731.0,60727.0,0.329341]
[1722717617771,0.001,60731.0,60729.0,0.164665]
[1722717617772,0.00120284,60730.0,60729.0,0.164665]
[1722717617948,0.329301,60735.0,60729.0,0.164665]
[1722717617949,0.00120284,60732.0,60729.0,0.329331]
[1722717618157,0.00120284,60734.0,60731.0,0.16466]
[1722717618735,0.33050484,60735.0,60730.0,0.004]
[1722717618985,0.164655,60733.0,60730.0,0.001]
[1722717619190,0.33050484,60735.0,60730.0,0.001]
[1722717619191,0.16586084,60732.0,60730.0,0.001]
[1722717619338,0.00120284,60732.0,60729.0,0.164665]
[1722717619552,0.00120284,60732.0,60714.0,0.505512]
[1722717619553,0.0603,60730.0,60718.0,0.01652526]
[1722717619707,0.1426,60719.0,60718.0,0.01652526]
[1722717619907,0.30632403,60719.0,60718.0,0.01652526]
[1722717620125,0.63571003,60719.0,60718.0,0.01652526]
[1722717620323,0.63571003,60719.0,60708.0,0.000913]
[1722717620324,0.14163103,60719.0,60715.0,0.164703]
[1722717620548,0.164698,60717.0,60716.0,0.0164703]
[1722717620973,0.00120284,60718.0,60717.0,0.164698]
[1722717621172,0.08412089,60727.0,60718.0,0.006]
[1722717621413,0.329355,60725.0,60718.0,0.006]
[1722717621592,0.00120284,60724.0,60718.0,0.006]
[1722717621847,0.494057,60722.0,60717.0,0.18122326]
[1722717622052,0.00120284,60721.0,60718.0,0.004]
[1722717622192,0.224993,60719.0,60718.0,0.004]
[1722717622544,0.08412089,60721.0,60717.0,0.01652526]
[1722717622696,0.08412089,60721.0,60716.0,0.008]
[1722717622697,0.164698,60717.0,60716.0,0.008]
[1722717622895,0.0823,60717.0,60716.0,0.008]
[1722717623102,0.02583138,60717.0,60716.0,0.008]
[1722717623434,0.02583138,60717.0,60716.0,0.965405]
[1722717623596,0.02583138,60717.0,60716.0,0.887105]
[1722717623794,0.02583138,60717.0,60716.0,1.216507]
[1722717624000,0.164664,60730.0,60726.0,0.164674]
[1722717624197,0.00120284,60729.0,60726.0,0.164671]
[1722717624497,0.00120284,60730.0,60729.0,0.164665]
[1722717624705,0.00120284,60733.0,60732.0,0.164657]
[1722717625083,0.00120284,60733.0,60728.0,0.164668]
[1722717625292,0.01004689,60735.0,60729.0,0.0164668]
[1722717625293,0.164658,60732.0,60729.0,0.0164668]
[1722717625422,0.00120284,60731.0,60729.0,0.0164668]
[1722717625619,0.164662,60731.0,60729.0,0.0164668]
[1722717625823,0.164662,60731.0,60727.0,0.164671]
[1722717625824,0.00120284,60730.0,60727.0,0.164671]
[1722717626032,0.00120284,60730.0,60729.0,0.164665]
[1722717626254,0.01004689,60735.0,60730.0,0.164662]
[1722717626255,0.164655,60733.0,60730.0,0.164662]
[1722717626561,0.00120284,60732.0,60728.0,0.329335]
[1722717626764,0.00120284,60734.0,60733.0,0.493965]
[1722717626964,0.16584184,60739.0,60735.0,0.164648]
[1722717627173,0.00120284,60739.0,60738.0,0.493924]
[1722717627371,0.00120284,60745.0,60742.0,0.16463]
[1722717627526,0.00120284,60745.0,60743.0,0.0329335]
[1722717627527,0.164625,60744.0,60743.0,0.0329335]
[1722717627899,0.164625,60744.0,60739.0,0.164638]
[1722717627900,0.164628,60743.0,60739.0,0.164637]
[1722717628119,0.23225089,60746.0,60735.0,0.0783]
[1722717628120,0.00120284,60742.0,60735.0,0.0783]
[1722717628309,0.02582338,60744.0,60741.0,0.164631]
[1722717628310,0.00120284,60743.0,60741.0,0.164631]
[1722717628746,0.00120284,60743.0,60742.0,0.001]
[1722717629105,0.02582338,60744.0,60742.0,0.001]
[1722717629262,0.00120284,60743.0,60742.0,0.001]
[1722717629730,0.02582338,60744.0,60742.0,0.001]
[1722717629932,0.02582338,60744.0,60741.0,0.164632]
[1722717630139,0.01120284,60743.0,60742.0,0.16563]
[1722717630451,0.01,60743.0,60742.0,0.16563]
[1722717630851,0.02582338,60744.0,60743.0,0.164628]
[1722717631060,0.02582338,60744.0,60743.0,0.556984]
[1722717631276,0.03482338,60744.0,60743.0,1.39777215]
[1722717631677,0.03482338,60744.0,60743.0,1.80532815]
[1722717631977,0.009,60744.0,60743.0,1.90532815]
[1722717632678,0.00083,60751.0,60750.0,0.823045]
[1722717632913,0.00083,60751.0,60750.0,0.83957026]
[1722717634362,0.00183,60751.0,60750.0,0.86557026]
[1722717634806,0.02764679,60751.0,60750.0,0.86557026]
[1722717635970,0.00183,60751.0,60750.0,0.86557026]
[1722717637381,0.00183,60751.0,60750.0,0.849045]
[1722717639387,0.02764695,60751.0,60750.0,1.178263]
[1722717639594,0.00183,60751.0,60750.0,1.48541389]
[1722717639791,0.00183,60751.0,60750.0,1.82463189]
[1722717639993,0.00183,60751.0,60750.0,1.84663189]
[1722717640193,0.00183,60751.0,60750.0,1.94663189]
[1722717641063,0.00183,60751.0,60750.0,1.92463189]
[1722717641608,0.00183,60751.0,60750.0,1.94463189]
[1722717641844,0.00183,60751.0,60750.0,1.93463189]
[1722717642043,0.00183,60751.0,60750.0,1.94463189]
[1722717642417,0.02764235,60751.0,60750.0,1.94663189]
[1722717643920,0.02764235,60751.0,60750.0,1.92463189]
[1722717644119,0.02764235,60751.0,60750.0,1.93431355]
[1722717645170,0.02764235,60751.0,60750.0,2.10811355]
[1722717645438,0.02764235,60751.0,60750.0,1.93431355]
[1722717646603,0.02764235,60751.0,60750.0,1.94431355]
[1722717646814,0.02764235,60751.0,60750.0,1.93431355]
[1722717647550,0.02764235,60751.0,60750.0,1.59509555]
[1722717647551,0.00183,60751.0,60750.0,1.59509555]
[1722717648969,0.00183,60751.0,60750.0,1.44401389]
[1722717650148,0.00183,60751.0,60750.0,1.86523189]
[1722717650936,0.02764299,60751.0,60750.0,1.86523189]
[1722717651330,0.02764299,60751.0,60750.0,1.52601389]
[1722717651331,0.00183,60751.0,60750.0,1.52601389]
[1722717651913,0.00183,60751.0,60750.0,1.44401389]
[1722717654142,0.00183,60751.0,60750.0,0.519827]
[1722717654525,0.02764517,60751.0,60750.0,0.190609]
[1722717654675,0.02764517,60751.0,60750.0,0.519827]
[1722717655615,0.02764517,60751.0,60750.0,0.190609]
[1722717655778,0.00183,60751.0,60750.0,0.026]
[1722717655978,0.166436,60751.0,60750.0,0.026]
[1722717656177,0.495648,60751.0,60750.0,0.026]
[1722717656904,0.166436,60751.0,60750.0,0.026]
[1722717657126,0.166436,60751.0,60750.0,0.0450617]
[1722717657127,0.00183,60751.0,60750.0,0.0450617]
[1722717657732,0.00183,60751.0,60750.0,0.2096707]
[1722717658356,0.00183,60751.0,60750.0,0.0450617]
[1722717658930,0.00183,60751.0,60750.0,0.8713987]
[1722717659541,0.00183,60751.0,60750.0,1.36636759]
[1722717659741,0.00183,60751.0,60750.0,1.36307559]
[1722717660035,0.00183,60751.0,60750.0,1.1973247]
[1722717660637,0.00183,60751.0,60750.0,0.8681067]
[1722717660986,0.01473,60757.0,60754.0,0.164596]
[1722717661285,0.07498,60761.0,60760.0,0.164581]
[1722717661504,0.00928,60761.0,60760.0,0.822907]
[1722717661747,0.00928,60761.0,60760.0,0.5128057]
[1722717662559,0.00928,60761.0,60760.0,0.0190617]
[1722717662767,0.00928,60761.0,60760.0,0.1836427]
[1722717663140,0.00928,60761.0,60760.0,0.8439687]
[1722717663302,0.03509326,60761.0,60760.0,0.8439687]
[1722717663519,0.00928,60761.0,60760.0,0.8439687]
[1722717666675,0.00928,60761.0,60760.0,1.41538259]
[1722717666884,0.03509209,60761.0,60760.0,1.81624559]
[1722717667115,0.03509209,60761.0,60760.0,1.91624559]
[1722717667300,0.03509209,60761.0,60760.0,1.98690598]
[1722717667301,0.00928,60761.0,60760.0,1.98690598]
[1722717667514,0.00928,60769.0,60768.0,1.22842]
[1722717667718,0.00928,60769.0,60768.0,1.58679615]
[1722717667927,0.00928,60769.0,60768.0,1.91591615]
[1722717668133,0.00928,60769.0,60768.0,2.01591615]
[1722717668349,0.00928,60769.0,60768.0,2.08761615]
[1722717668682,0.00928,60769.0,60768.0,2.11667785]
[1722717668812,0.00928,60769.0,60768.0,2.12667785]
[1722717669244,0.00928,60769.0,60768.0,2.12867785]
[1722717669852,0.01028,60769.0,60768.0,2.23867785]
[1722717670055,0.01028,60769.0,60768.0,2.22867785]
[1722717670429,0.01128,60769.0,60768.0,2.24267785]
[1722717670627,0.00928,60769.0,60768.0,2.22867785]
[1722717670855,0.00928,60769.0,60768.0,2.22667785]
[1722717671402,0.00928,60769.0,60768.0,2.24067785]
[1722717671678,0.00928,60769.0,60768.0,2.02057785]
[1722717671853,0.00928,60769.0,60768.0,2.03457785]
[1722717672253,0.00928,60769.0,60768.0,1.56725785]
[1722717672462,0.00928,60769.0,60768.0,1.55325785]
[1722717672638,0.00928,60769.0,60768.0,1.57717768]
[1722717672845,0.00928,60769.0,60768.0,1.73675242]
[1722717673047,0.00928,60769.0,60768.0,0.9558617]
[1722717673394,0.00928,60769.0,60768.0,0.9698617]
[1722717673529,0.00928,60769.0,60768.0,0.9558617]
[1722717673728,0.00928,60769.0,60768.0,1.2849817]
[1722717673928,0.00928,60769.0,60768.0,1.60293259]
[1722717674124,0.00928,60769.0,60768.0,1.90405259]
[1722717674327,0.00928,60769.0,60768.0,1.3474817]
[1722717674586,0.00928,60769.0,60768.0,1.3724817]
[1722717674968,0.00928,60769.0,60768.0,1.2959817]
[1722717675170,0.00928,60769.0,60768.0,1.2819817]
[1722717675376,0.03508765,60769.0,60768.0,1.2819817]
[1722717675551,0.03508765,60769.0,60768.0,1.2959817]
[1722717675908,0.00928,60769.0,60768.0,1.2849817]
[1722717676390,0.00928,60769.0,60768.0,1.2709817]
[1722717676533,0.00928,60769.0,60768.0,0.9528617]
[1722717676995,0.00928,60769.0,60768.0,1.2819817]
[1722717677847,0.00928,60769.0,60768.0,1.2949817]
[1722717678622,0.00928,60769.0,60768.0,0.6367417]
[1722717679161,0.03508818,60769.0,60768.0,0.9658617]
[1722717679516,0.03508818,60769.0,60768.0,1.2949817]
[1722717680264,0.00928,60769.0,60768.0,1.2949817]
[1722717681213,0.00928,60769.0,60768.0,1.46073259]
[1722717683509,0.0350878,60769.0,60768.0,1.46073259]
[1722717683912,0.00928,60769.0,60768.0,1.46073259]
[1722717685862,0.00928,60769.0,60768.0,0.9658617]
[1722717686059,0.15258,60769.0,60768.0,0.9658617]
[1722717687066,0.17838827,60769.0,60768.0,0.9658617]
[1722717687274,0.09718827,60769.0,60768.0,0.9658617]
[1722717687473,0.07138,60769.0,60768.0,0.9658617]
[1722717689669,0.07138,60769.0,60768.0,0.6367417]
[1722717690074,0.07138,60769.0,60768.0,0.9658617]
[1722717690271,0.00928,60769.0,60768.0,0.9658617]
[1722717690734,0.03508811,60769.0,60768.0,0.9658617]
[1722717691799,0.00928,60769.0,60768.0,0.9658617]
[1722717694992,0.03508797,60769.0,60768.0,0.9658617]
[1722717695187,0.00928,60769.0,60768.0,0.9658617]
[1722717695606,0.00928,60769.0,60768.0,0.6367417]
[1722717697162,0.00928,60769.0,60768.0,0.9658617]
[1722717698107,0.03508831,60769.0,60768.0,0.9658617]
[1722717698500,0.00928,60769.0,60768.0,0.9658617]
[1722717698720,0.00928,60769.0,60768.0,0.3076217]
[1722717698921,0.00928,60769.0,60768.0,0.6367417]
[1722717699740,0.00928,60769.0,60768.0,0.9658617]
[1722717701395,0.00928,60769.0,60768.0,0.6367417]
[1722717701601,0.235937,60769.0,60768.0,0.124]
[1722717701798,1.49604205,60769.0,60768.0,0.124]
[1722717702037,1.32674762,60769.0,60768.0,0.124]
[1722717702710,1.30093846,60769.0,60768.0,0.124]
[1722717702844,1.30093846,60769.0,60768.0,0.1254]
[1722717703276,1.30093846,60769.0,60768.0,0.1124]
[1722717703277,1.29593846,60769.0,60768.0,0.1124]
[1722717703482,1.29593846,60769.0,60768.0,0.1134]
[1722717703483,1.16411789,60769.0,60768.0,0.1134]
[1722717703680,1.3009427,60769.0,60768.0,0.1134]
[1722717704081,1.6310577,60769.0,60768.0,0.1134]
[1722717704283,1.50393454,60769.0,60768.0,0.1134]
[1722717704499,1.3116445,60769.0,60768.0,0.1134]
[1722717704875,1.17481954,60769.0,60768.0,0.1134]
[1722717705074,1.17381954,60769.0,60768.0,0.1134]
[1722717705754,1.31064982,60769.0,60768.0,0.101]
[1722717705949,1.71370245,60769.0,60768.0,0.101]
[1722717706501,1.71370245,60769.0,60768.0,0.102]
[1722717707117,1.71370859,60769.0,60768.0,0.102]
[1722717707528,1.73952103,60769.0,60768.0,0.102]
[1722717707728,1.71370869,60769.0,60768.0,0.102]
[1722717707952,1.63977106,60769.0,60768.0,0.102]
[1722717708538,1.68907262,60769.0,60768.0,0.102]
[1722717708773,1.71370869,60769.0,60768.0,0.102]
[1722717709383,1.71491153,60769.0,60768.0,0.102]
[1722717709579,1.71491153,60769.0,60768.0,0.102913]
[1722717709781,2.04402653,60769.0,60768.0,0.102913]
[1722717709944,1.63357106,60769.0,60768.0,0.102913]
[1722717710154,1.74357106,60769.0,60768.0,0.102913]
[1722717710389,2.19708335,60769.0,60768.0,0.102913]
[1722717710588,2.21708335,60769.0,60768.0,0.102913]
[1722717710829,2.19126957,60769.0,60768.0,0.102913]
[1722717711552,2.21592299,60769.0,60768.0,0.102913]
[1722717711681,2.09269361,60769.0,60768.0,0.102913]
[1722717711881,2.21590079,60769.0,60768.0,0.102913]
[1722717712082,2.21587095,60769.0,60768.0,0.102913]
[1722717712285,2.21587095,60769.0,60735.0,0.49750831]
[1722717712286,1.591454,60751.0,60735.0,0.49750831]
[1722717712487,2.16840087,60751.0,60735.0,0.49750831]
[1722717712688,2.47755976,60751.0,60735.0,0.49750831]
[1722717712891,0.0829,60743.0,60725.0,0.1471]
[1722717713093,0.164665,60730.0,60725.0,0.1471]
[1722717713299,0.164666,60729.0,60725.0,0.1471]
[1722717713504,0.164664,60730.0,60725.0,0.311776]
[1722717713970,0.164666,60729.0,60725.0,0.311776]
[1722717714148,0.329324,60731.0,60725.0,0.1471]
[1722717714372,0.494022,60726.0,60725.0,0.0649]
[1722717714675,0.35342489,60726.0,60725.0,0.005]
[1722717714861,0.68277289,60726.0,60725.0,0.005]
[1722717715083,1.01212089,60726.0,60725.0,0.005]
[1722717715649,1.01212089,60726.0,60725.0,0.007]
[1722717715851,0.32938,60720.0,60714.0,0.0649]
[1722717716051,0.164696,60718.0,60714.0,0.0649]
[1722717716250,0.164693,60719.0,60714.0,0.229606]
[1722717716862,0.32938,60720.0,60714.0,0.0649]
[1722717717143,0.16575089,60725.0,60709.0,0.0649]
[1722717717371,0.16575089,60719.0,60709.0,0.0649]
[1722717717563,0.16575089,60719.0,60714.0,0.01]
[1722717717564,0.33144489,60719.0,60714.0,0.01]
[1722717717744,0.164696,60718.0,60714.0,0.174706]
[1722717717955,0.33044689,60718.0,60714.0,0.01]
[1722717718559,0.164698,60717.0,60714.0,0.01]
[1722717718688,0.164698,60717.0,60714.0,0.02]
[1722717718883,0.164698,60717.0,60714.0,0.01]
[1722717719292,0.33144789,60718.0,60714.0,0.01]
[1722717719882,0.33044789,60718.0,60713.0,0.164708]
[1722717720091,0.329402,60716.0,60714.0,0.012]
[1722717720290,0.329402,60716.0,60714.0,0.023]
[1722717720481,0.164703,60715.0,60709.0,0.0649]
[1722717720701,0.16575089,60718.0,60710.0,0.164716]
[1722717720702,0.164707,60714.0,60710.0,0.164716]
[1722717720895,0.164704,60715.0,60714.0,0.011]
[1722717721100,0.16675089,60718.0,60714.0,0.011]
[1722717721308,0.164703,60715.0,60714.0,0.021]
[1722717721905,0.49411,60715.0,60714.0,0.021]
[1722717722174,0.164703,60715.0,60714.0,0.01]
[1722717722356,0.68569268,60715.0,60714.0,0.01]
[1722717722568,1.03809968,60715.0,60714.0,0.014]
[1722717723136,0.329425,60712.0,60708.0,0.000913]
[1722717723341,0.164718,60710.0,60708.0,0.000913]
[1722717723512,0.329426,60712.0,60708.0,0.000913]
[1722717723513,0.49416,60709.0,60708.0,0.000913]
[1722717723712,1.01235089,60709.0,60708.0,0.000913]
[1722717723915,0.76031089,60709.0,60708.0,0.000913]
[1722717725527,0.76031089,60709.0,60708.0,0.007913]
[1722717725734,0.76031089,60709.0,60708.0,0.003913]
[1722717725735,1.08975089,60709.0,60708.0,0.003913]
[1722717725915,1.15455089,60709.0,60708.0,0.003913]
[1722717726120,1.67109089,60709.0,60708.0,0.000913]
[1722717726310,1.67109089,60709.0,60708.0,0.001913]
[1722717726510,1.77109089,60709.0,60708.0,0.001913]
[1722717726936,1.77009089,60709.0,60708.0,0.000913]
[1722717727156,2.12253089,60709.0,60708.0,0.000913]
[1722717727628,1.77309089,60709.0,60708.0,0.000913]
[1722717727957,1.79309089,60709.0,60708.0,0.000913]
[1722717728173,1.77309089,60709.0,60708.0,0.000913]
[1722717728570,1.77009089,60709.0,60708.0,0.000913]
[1722717728967,1.77009089,60709.0,60708.0,0.001913]
[1722717728968,1.80109089,60709.0,60708.0,0.001913]
[1722717729619,1.19175089,60709.0,60708.0,0.002913]
[1722717729825,0.78491089,60709.0,60708.0,0.002913]
[1722717730173,0.45547089,60709.0,60708.0,0.002913]
[1722717730390,0.78491089,60709.0,60708.0,0.002913]
[1722717730590,0.29075089,60709.0,60708.0,0.002913]
[1722717730704,0.025,60709.0,60708.0,0.002913]
[1722717730905,0.025,60709.0,60708.0,0.892325]
[1722717731107,0.025,60709.0,60708.0,0.233435]
[1722717731315,0.025,60709.0,60708.0,0.892325]
[1722717731542,0.03983606,60709.0,60708.0,0.891325]
[1722717731751,0.02583606,60709.0,60708.0,0.890325]
[1722717732002,0.164699,60717.0,60710.0,0.32943]
[1722717732253,0.164699,60717.0,60713.0,0.164708]
[1722717732254,0.16575089,60716.0,60713.0,0.164708]
[1722717732468,0.16575089,60716.0,60711.0,0.164713]
[1722717732469,0.164704,60715.0,60711.0,0.164713]
[1722717732663,0.33045489,60715.0,60711.0,0.164713]
[1722717732902,0.16575089,60715.0,60714.0,0.164706]
[1722717733085,0.00982172,60718.0,60711.0,0.329424]
[1722717733228,0.00982172,60718.0,60708.0,0.073713]
[1722717733229,0.005,60717.0,60716.0,0.494103]